[Event "*** Titled Tuesday Blitz"]
[Site "Chess.com"]
[Date "2020.10.20"]
[Round "1"]
[White "UmbertoConcelli"]
[Black "kot60"]
[Result "1-0"]
[WhiteElo "2717"]
[BlackElo "2356"]
[TimeControl "180+1"]
[EndTime "10:07:53 PDT"]
[Termination "UmbertoConcelli won on time"]

1. d4 {[%clk 0:02:53.8]} 1... Nf6 {[%clk 0:02:59.2]} 2. c4 {[%clk 0:02:51.3]}
2... e5 {[%clk 0:02:58.4]} 3. dxe5 {[%clk 0:02:48.8]} 3... Ng4 {[%clk
0:02:58.1]} 4. Bf4 {[%clk 0:02:49.2]} 4... Bc5 {[%clk 0:02:57]} 5. e3 {[%clk
0:02:49]} 5... d6 {[%clk 0:02:57.2]} 6. exd6 {[%clk 0:02:46.4]} 6... Qf6 {[%clk
0:02:57.1]} 7. Nc3 {[%clk 0:02:15.1]} 7... Nxf2 {[%clk 0:02:54.9]} 8. Nd5 {[%clk
0:02:06.7]} 8... Qxb2 {[%clk 0:02:54.2]} 9. Rb1 {[%clk 0:01:57.6]} 9... Nxd1
{[%clk 0:02:41.1]} 10. Rxb2 {[%clk 0:01:57.3]} 10... Nxb2 {[%clk 0:02:41.7]} 11.
Nxc7+ {[%clk 0:01:57.4]} 11... Kd7 {[%clk 0:02:41.4]} 12. Nxa8 {[%clk
0:01:58.3]} 12... Bxd6 {[%clk 0:02:40.8]} 13. Nf3 {[%clk 0:01:51.1]} 13... Re8
{[%clk 0:02:26.9]} 14. Kd2 {[%clk 0:01:48.7]} 14... b6 {[%clk 0:02:09.7]} 15.
Kc2 {[%clk 0:01:44.2]} 15... Na4 {[%clk 0:01:59.4]} 16. c5 {[%clk 0:01:44.2]}
16... Nxc5 {[%clk 0:01:57]} 17. Bb5+ {[%clk 0:01:43.9]} 17... Nc6 {[%clk
0:01:56.6]} 18. Rd1 {[%clk 0:01:44.2]} 18... Ne4 {[%clk 0:01:54.2]} 19. Ng5
{[%clk 0:01:38.1]} 19... Bb7 {[%clk 0:01:37.4]} 20. Nxe4 {[%clk 0:01:35.1]}
20... Rxe4 {[%clk 0:01:34.6]} 21. Rxd6+ {[%clk 0:01:34.6]} 21... Ke7 {[%clk
0:01:34.7]} 22. Bxc6 {[%clk 0:01:30.8]} 22... Rc4+ {[%clk 0:01:33.6]} 23. Kb3
{[%clk 0:01:29.6]} 23... Rxc6 {[%clk 0:01:32.3]} 24. Rxc6 {[%clk 0:01:26.1]}
24... Bxc6 {[%clk 0:01:33.2]} 25. Nc7 {[%clk 0:01:26.8]} 25... Bxg2 {[%clk
0:01:26.1]} 26. Nb5 {[%clk 0:01:26.5]} 26... a6 {[%clk 0:01:24.8]} 27. Nc3
{[%clk 0:01:18.7]} 27... Ke6 {[%clk 0:01:19.7]} 28. a4 {[%clk 0:01:16.9]} 28...
Bc6 {[%clk 0:01:17.4]} 29. Kb4 {[%clk 0:01:12.5]} 29... f6 {[%clk 0:01:12]} 30.
Bc7 {[%clk 0:01:11.3]} 30... b5 {[%clk 0:01:12.2]} 31. axb5 {[%clk 0:01:11.1]}
31... axb5 {[%clk 0:01:11.8]} 32. Kc5 {[%clk 0:01:11.4]} 32... Bg2 {[%clk
0:01:01.9]} 33. Kxb5 {[%clk 0:01:07.2]} 33... Kf5 {[%clk 0:00:55.7]} 34. Kc5
{[%clk 0:01:06.6]} 34... Kg4 {[%clk 0:00:54.3]} 35. Kd6 {[%clk 0:00:50.9]} 35...
f5 {[%clk 0:00:53.3]} 36. Ke7 {[%clk 0:00:49.8]} 36... g5 {[%clk 0:00:51.9]} 37.
Kf6 {[%clk 0:00:44.2]} 37... f4 {[%clk 0:00:48.3]} 38. e4 {[%clk 0:00:40.5]}
38... h6 {[%clk 0:00:24.1]} 39. e5 {[%clk 0:00:39.7]} 39... Kh3 {[%clk
0:00:24.1]} 40. e6 {[%clk 0:00:30.3]} 40... Bc6 {[%clk 0:00:22.4]} 41. Kg6
{[%clk 0:00:24.4]} 41... Kxh2 {[%clk 0:00:16.6]} 42. Kxh6 {[%clk 0:00:24.1]}
42... Kg2 {[%clk 0:00:14.1]} 43. Kxg5 {[%clk 0:00:23.7]} 43... f3 {[%clk
0:00:14.6]} 44. Bb6 {[%clk 0:00:18.7]} 44... f2 {[%clk 0:00:13.4]} 45. Nd1
{[%clk 0:00:17.7]} 45... f1=Q {[%clk 0:00:04.2]} 46. Ne3+ {[%clk 0:00:16.4]}
46... Kf3 {[%clk 0:00:04.4]} 47. Nxf1 {[%clk 0:00:17.3]} 47... Ke4 {[%clk
0:00:04.6]} 48. Ng3+ {[%clk 0:00:16.9]} 48... Kd5 {[%clk 0:00:04.5]} 49. e7
{[%clk 0:00:16.3]} 49... Ke6 {[%clk 0:00:04.6]} 50. Bc5 {[%clk 0:00:15.5]} 50...
Kf7 {[%clk 0:00:04.1]} 51. Nf5 {[%clk 0:00:14.9]} 51... Ba4 {[%clk 0:00:01.3]}
52. Bd6 {[%clk 0:00:13.4]} 1-0

[Event "*** Titled Tuesday Blitz"]
[Site "Chess.com"]
[Date "2020.10.20"]
[Round "1"]
[White "Sashadav97"]
[Black "Belka1989"]
[Result "1-0"]
[WhiteElo "2603"]
[BlackElo "2275"]
[TimeControl "180+1"]
[EndTime "10:07:53 PDT"]
[Termination "Sashadav97 won on time"]

1. Nf3 {[%clk 0:03:00.9]} 1... d5 {[%clk 0:02:58.2]} 2. c4 {[%clk 0:03:00.8]}
2... c6 {[%clk 0:02:57.9]} 3. g3 {[%clk 0:02:59.4]} 3... Nf6 {[%clk 0:02:57.9]}
4. Bg2 {[%clk 0:02:59.5]} 4... Bf5 {[%clk 0:02:57.9]} 5. Qb3 {[%clk 0:02:55.7]}
5... Qb6 {[%clk 0:02:53.2]} 6. d3 {[%clk 0:02:52.1]} 6... e6 {[%clk 0:02:49.5]}
7. Be3 {[%clk 0:02:51.8]} 7... dxc4 {[%clk 0:02:41.5]} 8. Qxc4 {[%clk
0:02:41.2]} 8... Qxb2 {[%clk 0:02:33.7]} 9. Bd4 {[%clk 0:02:41.5]} 9... Qb4+
{[%clk 0:02:33.6]} 10. Nbd2 {[%clk 0:02:27.4]} 10... Qxc4 {[%clk 0:02:19.3]} 11.
Nxc4 {[%clk 0:02:28.3]} 11... Nbd7 {[%clk 0:02:18.3]} 12. Rb1 {[%clk 0:02:24.8]}
12... b5 {[%clk 0:01:31.6]} 13. Nce5 {[%clk 0:02:21.8]} 13... Rc8 {[%clk
0:01:24]} 14. Bxa7 {[%clk 0:02:01.2]} 14... Bd6 {[%clk 0:01:09.2]} 15. Nxd7
{[%clk 0:01:55.9]} 15... Kxd7 {[%clk 0:01:10.1]} 16. Nd4 {[%clk 0:01:46.8]}
16... Bg6 {[%clk 0:01:06.7]} 17. O-O {[%clk 0:01:40]} 17... Nd5 {[%clk
0:01:03.3]} 18. Rfc1 {[%clk 0:01:37]} 18... b4 {[%clk 0:00:54.8]} 19. Rc4 {[%clk
0:00:55.4]} 19... Ra8 {[%clk 0:00:47.9]} 20. Bc5 {[%clk 0:00:51.1]} 20... Be5
{[%clk 0:00:33.8]} 21. Bxd5 {[%clk 0:00:46.6]} 21... cxd5 {[%clk 0:00:22]} 22.
Rcxb4 {[%clk 0:00:46.7]} 22... Rhb8 {[%clk 0:00:10.6]} 23. a3 {[%clk 0:00:34.5]}
23... Bc7 {[%clk 0:00:03.7]} 24. Rb5 {[%clk 0:00:20.3]} 24... e5 {[%clk
0:00:03.6]} 25. Nf3 {[%clk 0:00:20.3]} 25... f6 {[%clk 0:00:03.1]} 26. Rxb8
{[%clk 0:00:14.9]} 26... Rxb8 {[%clk 0:00:04]} 27. Bb4 {[%clk 0:00:15.5]} 27...
Bh5 {[%clk 0:00:03.7]} 28. Kg2 {[%clk 0:00:15.5]} 28... e4 {[%clk 0:00:02.6]}
29. dxe4 {[%clk 0:00:15.4]} 29... dxe4 {[%clk 0:00:03.5]} 30. Nd4 {[%clk
0:00:15.2]} 30... Be5 {[%clk 0:00:04]} 31. e3 {[%clk 0:00:14.7]} 31... Bxd4
{[%clk 0:00:03.7]} 32. exd4 {[%clk 0:00:15.6]} 32... Bf3+ {[%clk 0:00:04]} 33.
Kf1 {[%clk 0:00:16.2]} 33... Rc8 {[%clk 0:00:04.4]} 34. Ra1 {[%clk 0:00:13.5]}
34... Rc2 {[%clk 0:00:03.6]} 35. a4 {[%clk 0:00:13.9]} 35... Kc6 {[%clk
0:00:03.4]} 36. a5 {[%clk 0:00:14]} 36... Kb7 {[%clk 0:00:02.8]} 37. a6+ {[%clk
0:00:14]} 37... Ka8 {[%clk 0:00:03.2]} 38. a7 {[%clk 0:00:14.2]} 38... Rb2
{[%clk 0:00:02.8]} 39. Bc5 {[%clk 0:00:14.4]} 39... Rb3 {[%clk 0:00:01.8]} 40.
h3 {[%clk 0:00:14.2]} 40... h5 {[%clk 0:00:02.2]} 41. g4 {[%clk 0:00:13.4]}
41... g5 {[%clk 0:00:02]} 42. gxh5 {[%clk 0:00:13.5]} 42... Bxh5 {[%clk
0:00:02.9]} 43. Kg2 {[%clk 0:00:13.6]} 43... Bf3+ {[%clk 0:00:03.4]} 44. Kh2
{[%clk 0:00:13.9]} 44... Bh5 {[%clk 0:00:03.2]} 45. Re1 {[%clk 0:00:13.2]} 45...
f5 {[%clk 0:00:03.3]} 46. Rg1 {[%clk 0:00:13]} 46... Bf3 {[%clk 0:00:02.6]} 47.
Rxg5 {[%clk 0:00:12.7]} 47... e3 {[%clk 0:00:02.2]} 48. fxe3 {[%clk 0:00:13]}
48... Kb7 {[%clk 0:00:02.1]} 49. Rg8 {[%clk 0:00:13.5]} 49... Ka6 {[%clk
0:00:02.5]} 50. a8=Q+ {[%clk 0:00:13.7]} 50... Bxa8 {[%clk 0:00:01.4]} 51. Rxa8+
{[%clk 0:00:14.6]} 1-0

[Event "*** Titled Tuesday Blitz"]
[Site "Chess.com"]
[Date "2020.10.20"]
[Round "1"]
[White "elcandado"]
[Black "eCztery"]
[Result "1-0"]
[WhiteElo "2570"]
[BlackElo "2249"]
[TimeControl "180+1"]
[EndTime "10:07:56 PDT"]
[Termination "elcandado won by resignation"]

1. d4 {[%clk 0:03:00.9]} 1... Nf6 {[%clk 0:02:58]} 2. Bf4 {[%clk 0:03:00.7]}
2... e6 {[%clk 0:02:58.3]} 3. e3 {[%clk 0:03:00.2]} 3... c5 {[%clk 0:02:58]} 4.
c3 {[%clk 0:02:59.9]} 4... cxd4 {[%clk 0:02:58.3]} 5. cxd4 {[%clk 0:02:58.9]}
5... d5 {[%clk 0:02:59.2]} 6. Nc3 {[%clk 0:02:57]} 6... Bd6 {[%clk 0:02:59.7]}
7. Bg3 {[%clk 0:02:57.4]} 7... O-O {[%clk 0:02:59.3]} 8. Bd3 {[%clk 0:02:56.1]}
8... Nc6 {[%clk 0:02:58]} 9. Nf3 {[%clk 0:02:45.2]} 9... Qe7 {[%clk 0:02:53.7]}
10. a3 {[%clk 0:02:42.6]} 10... e5 {[%clk 0:02:54]} 11. dxe5 {[%clk 0:02:41.7]}
11... Nxe5 {[%clk 0:02:54.9]} 12. Nxe5 {[%clk 0:02:40.8]} 12... Bxe5 {[%clk
0:02:55.8]} 13. Bxe5 {[%clk 0:02:27.9]} 13... Qxe5 {[%clk 0:02:56.7]} 14. Be2
{[%clk 0:02:28.4]} 14... Ne4 {[%clk 0:02:41.2]} 15. Qxd5 {[%clk 0:02:11.5]}
15... Qxd5 {[%clk 0:02:34.2]} 16. Nxd5 {[%clk 0:02:12.4]} 16... Be6 {[%clk
0:02:28.8]} 17. Nc7 {[%clk 0:02:08.8]} 17... Rac8 {[%clk 0:02:27.3]} 18. Nxe6
{[%clk 0:02:04.6]} 18... fxe6 {[%clk 0:02:27.8]} 19. O-O {[%clk 0:02:04.4]}
19... Nd2 {[%clk 0:02:00.2]} 20. Rfc1 {[%clk 0:01:47.7]} 20... Nb3 {[%clk
0:01:55.5]} 21. Rxc8 {[%clk 0:01:46.8]} 21... Rxc8 {[%clk 0:01:56.4]} 22. Rb1
{[%clk 0:01:46.8]} 22... Kf7 {[%clk 0:01:38.5]} 23. Bd3 {[%clk 0:01:36.7]} 23...
e5 {[%clk 0:01:31.6]} 24. Rd1 {[%clk 0:01:31.8]} 24... Kf6 {[%clk 0:01:22.7]}
25. Kf1 {[%clk 0:01:22]} 25... Nc5 {[%clk 0:01:06.7]} 26. Ke2 {[%clk 0:01:21.3]}
26... a6 {[%clk 0:01:01.1]} 27. Bc2 {[%clk 0:01:16.6]} 27... Rc6 {[%clk
0:00:59.9]} 28. Rd2 {[%clk 0:01:05.7]} 28... b5 {[%clk 0:00:58.1]} 29. g3 {[%clk
0:01:01.1]} 29... g5 {[%clk 0:00:57.5]} 30. Bxh7 {[%clk 0:00:53.3]} 30... Nb3
{[%clk 0:00:54.5]} 31. Rc2 {[%clk 0:00:51.8]} 31... Rd6 {[%clk 0:00:48.8]} 32.
Be4 {[%clk 0:00:49.9]} 32... g4 {[%clk 0:00:45.4]} 33. f3 {[%clk 0:00:48.6]}
33... gxf3+ {[%clk 0:00:44.7]} 34. Bxf3 {[%clk 0:00:49]} 34... Kg5 {[%clk
0:00:44.7]} 35. h4+ {[%clk 0:00:46.9]} 35... Kf5 {[%clk 0:00:43.5]} 36. g4+
{[%clk 0:00:46.9]} 36... Ke6 {[%clk 0:00:40.4]} 37. Be4 {[%clk 0:00:42.9]} 37...
Na5 {[%clk 0:00:39.6]} 38. h5 {[%clk 0:00:35.5]} 38... Nc4 {[%clk 0:00:39.9]}
39. g5 {[%clk 0:00:34.4]} 39... Ke7 {[%clk 0:00:37.4]} 40. h6 {[%clk 0:00:33.4]}
40... Rd8 {[%clk 0:00:33.2]} 41. g6 {[%clk 0:00:32.4]} 41... Kf6 {[%clk
0:00:30.2]} 42. g7 {[%clk 0:00:31.2]} 42... Nd6 {[%clk 0:00:27.4]} 43. Bd5
{[%clk 0:00:30.3]} 43... Nf7 {[%clk 0:00:26.4]} 44. Bxf7 {[%clk 0:00:26.3]}
44... Kxf7 {[%clk 0:00:27.3]} 45. Rc6 {[%clk 0:00:25.4]} 45... a5 {[%clk
0:00:23.9]} 46. Kf3 {[%clk 0:00:25.2]} 46... b4 {[%clk 0:00:13]} 47. axb4 {[%clk
0:00:24.5]} 47... axb4 {[%clk 0:00:13.9]} 48. Ke4 {[%clk 0:00:24.9]} 48... b3
{[%clk 0:00:13.4]} 49. Rb6 {[%clk 0:00:24.2]} 49... Kg8 {[%clk 0:00:14.3]} 50.
Rf6 {[%clk 0:00:21.3]} 50... Kh7 {[%clk 0:00:13.6]} 51. Rf8 {[%clk 0:00:21.3]}
51... Rxf8 {[%clk 0:00:04]} 52. gxf8=Q {[%clk 0:00:20.4]} 52... Kg6 {[%clk
0:00:03]} 53. Qg7+ {[%clk 0:00:20.2]} 53... Kh5 {[%clk 0:00:03.9]} 1-0

[Event "*** Titled Tuesday Blitz"]
[Site "Chess.com"]
[Date "2020.10.20"]
[Round "1"]
[White "grunbergmihai"]
[Black "chessmadara"]
[Result "1-0"]
[WhiteElo "2506"]
[BlackElo "2125"]
[TimeControl "180+1"]
[EndTime "10:07:58 PDT"]
[Termination "grunbergmihai won on time"]

1. d4 {[%clk 0:03:00.7]} 1... Nf6 {[%clk 0:02:59.1]} 2. c4 {[%clk 0:02:59.4]}
2... g6 {[%clk 0:02:58.5]} 3. Nc3 {[%clk 0:02:59]} 3... d5 {[%clk 0:02:58.4]} 4.
cxd5 {[%clk 0:02:57.9]} 4... Nxd5 {[%clk 0:02:58.9]} 5. e4 {[%clk 0:02:58.7]}
5... Nxc3 {[%clk 0:02:58.5]} 6. bxc3 {[%clk 0:02:59.6]} 6... Bg7 {[%clk
0:02:58.5]} 7. Bc4 {[%clk 0:03:00]} 7... c5 {[%clk 0:02:58.3]} 8. Ne2 {[%clk
0:02:58.7]} 8... O-O {[%clk 0:02:57.7]} 9. O-O {[%clk 0:02:58.5]} 9... Nc6
{[%clk 0:02:57]} 10. Be3 {[%clk 0:02:57.7]} 10... b6 {[%clk 0:02:56.9]} 11. dxc5
{[%clk 0:02:55.4]} 11... Qc7 {[%clk 0:02:55.8]} 12. cxb6 {[%clk 0:02:54.1]}
12... axb6 {[%clk 0:02:54.8]} 13. Rb1 {[%clk 0:02:51.5]} 13... Na5 {[%clk
0:02:49.1]} 14. Bd5 {[%clk 0:02:49.4]} 14... Rb8 {[%clk 0:02:45.8]} 15. Bf4
{[%clk 0:02:49]} 15... e5 {[%clk 0:02:45]} 16. Bg5 {[%clk 0:02:46.1]} 16... Ba6
{[%clk 0:02:37.2]} 17. Re1 {[%clk 0:02:41.6]} 17... Bxe2 {[%clk 0:02:34.8]} 18.
Rxe2 {[%clk 0:02:38.4]} 18... Qxc3 {[%clk 0:02:34.1]} 19. Rc2 {[%clk 0:02:37.4]}
19... Qa3 {[%clk 0:02:17.4]} 20. h4 {[%clk 0:02:36.8]} 20... h6 {[%clk
0:02:15.3]} 21. Be3 {[%clk 0:02:35.3]} 21... Qe7 {[%clk 0:02:03.2]} 22. Bxb6
{[%clk 0:02:34.5]} 22... Nb7 {[%clk 0:01:20.3]} 23. h5 {[%clk 0:02:28.7]} 23...
g5 {[%clk 0:01:08]} 24. a4 {[%clk 0:02:28.1]} 24... Rfc8 {[%clk 0:00:49.8]} 25.
a5 {[%clk 0:02:23.6]} 25... Nd6 {[%clk 0:00:20.4]} 26. a6 {[%clk 0:02:16]} 26...
Rxc2 {[%clk 0:00:20.1]} 27. Qxc2 {[%clk 0:02:15.5]} 27... Nc8 {[%clk 0:00:20.6]}
28. a7 {[%clk 0:02:04.9]} 28... Nxa7 {[%clk 0:00:17.8]} 29. Rb3 {[%clk
0:01:49.7]} 29... Nc8 {[%clk 0:00:15.7]} 30. Bc5 {[%clk 0:01:48.8]} 30... Qc7
{[%clk 0:00:13.7]} 31. Rxb8 {[%clk 0:01:41.9]} 31... Qxb8 {[%clk 0:00:14.6]} 32.
Qc4 {[%clk 0:01:38.5]} 32... Qc7 {[%clk 0:00:13.3]} 33. g3 {[%clk 0:01:34.8]}
33... Bf8 {[%clk 0:00:11.8]} 34. Be3 {[%clk 0:01:26.8]} 34... Qxc4 {[%clk
0:00:11.7]} 35. Bxc4 {[%clk 0:01:27.7]} 35... Nd6 {[%clk 0:00:11.2]} 36. Bd5
{[%clk 0:01:28.6]} 36... Nb5 {[%clk 0:00:10.5]} 37. Bd2 {[%clk 0:01:27]} 37...
Nd4 {[%clk 0:00:10.5]} 38. Kg2 {[%clk 0:01:26.9]} 38... Bc5 {[%clk 0:00:10.4]}
39. Ba5 {[%clk 0:01:20.2]} 39... Kg7 {[%clk 0:00:10.4]} 40. Bd8 {[%clk 0:01:19]}
40... Bd6 {[%clk 0:00:09.6]} 41. Kf1 {[%clk 0:01:17.4]} 41... Bb8 {[%clk
0:00:09]} 42. Ke1 {[%clk 0:01:16.3]} 42... Bd6 {[%clk 0:00:09]} 43. Kd2 {[%clk
0:01:16.1]} 43... Bb8 {[%clk 0:00:08.6]} 44. Kd3 {[%clk 0:01:16.1]} 44... Bd6
{[%clk 0:00:08.4]} 45. f4 {[%clk 0:01:15.8]} 45... gxf4 {[%clk 0:00:07.3]} 46.
gxf4 {[%clk 0:01:15.7]} 46... Bb8 {[%clk 0:00:07.2]} 47. Bb6 {[%clk 0:01:13.8]}
47... Ne6 {[%clk 0:00:05.4]} 48. fxe5 {[%clk 0:01:00.7]} 48... Bxe5 {[%clk
0:00:06.3]} 49. Bxe6 {[%clk 0:00:51.6]} 49... fxe6 {[%clk 0:00:07.2]} 50. Bd8
{[%clk 0:00:51.7]} 50... Bf4 {[%clk 0:00:06.8]} 51. Kd4 {[%clk 0:00:51.4]} 51...
Bg5 {[%clk 0:00:05.4]} 52. Bc7 {[%clk 0:00:35.8]} 52... Bf6+ {[%clk 0:00:04.7]}
53. Kc5 {[%clk 0:00:34]} 53... Bc3 {[%clk 0:00:04.6]} 54. Bf4 {[%clk 0:00:33.2]}
54... Bb2 {[%clk 0:00:03.1]} 55. Kd6 {[%clk 0:00:32.1]} 55... e5 {[%clk
0:00:02.3]} 56. Bxe5+ {[%clk 0:00:31.5]} 56... Bxe5+ {[%clk 0:00:01.6]} 57. Kxe5
{[%clk 0:00:32.4]} 57... Kf7 {[%clk 0:00:02]} 58. Kf5 {[%clk 0:00:32.3]} 1-0

[Event "*** Titled Tuesday Blitz"]
[Site "Chess.com"]
[Date "2020.10.20"]
[Round "1"]
[White "ama18"]
[Black "Msb2"]
[Result "0-1"]
[WhiteElo "2448"]
[BlackElo "2930"]
[TimeControl "180+1"]
[EndTime "10:07:59 PDT"]
[Termination "Msb2 won on time"]

1. e4 {[%clk 0:03:00.9]} 1... e6 {[%clk 0:03:00.1]} 2. d4 {[%clk 0:02:58]} 2...
d5 {[%clk 0:02:59]} 3. Nc3 {[%clk 0:02:58.6]} 3... Nf6 {[%clk 0:02:58.8]} 4. e5
{[%clk 0:02:58.4]} 4... Nfd7 {[%clk 0:02:59.1]} 5. f4 {[%clk 0:02:59.1]} 5... c5
{[%clk 0:02:59.8]} 6. Nf3 {[%clk 0:02:58.3]} 6... Nc6 {[%clk 0:03:00.7]} 7. Be3
{[%clk 0:02:58.3]} 7... a6 {[%clk 0:03:01.4]} 8. Qd2 {[%clk 0:02:50.9]} 8... b5
{[%clk 0:03:01.6]} 9. dxc5 {[%clk 0:02:49.8]} 9... Bxc5 {[%clk 0:03:02.5]} 10.
Nd4 {[%clk 0:02:49.3]} 10... Nxd4 {[%clk 0:02:56.2]} 11. Bxd4 {[%clk 0:02:50.2]}
11... O-O {[%clk 0:02:56.7]} 12. Be2 {[%clk 0:02:49.8]} 12... b4 {[%clk
0:02:42.5]} 13. Na4 {[%clk 0:02:38.1]} 13... Bxd4 {[%clk 0:02:42.1]} 14. Qxd4
{[%clk 0:02:39]} 14... Qa5 {[%clk 0:02:42.8]} 15. b3 {[%clk 0:02:36.5]} 15...
Bb7 {[%clk 0:02:43.1]} 16. O-O {[%clk 0:02:35.9]} 16... Bc6 {[%clk 0:02:42.5]}
17. Nb2 {[%clk 0:02:35.1]} 17... Qc5 {[%clk 0:02:42.6]} 18. Qxc5 {[%clk
0:02:31.6]} 18... Nxc5 {[%clk 0:02:43.5]} 19. Nd3 {[%clk 0:02:30.6]} 19... Nxd3
{[%clk 0:02:39]} 20. Bxd3 {[%clk 0:02:31.5]} 20... a5 {[%clk 0:02:38]} 21. a3
{[%clk 0:02:30.3]} 21... g6 {[%clk 0:02:32.5]} 22. axb4 {[%clk 0:02:30.1]} 22...
axb4 {[%clk 0:02:33.4]} 23. Kf2 {[%clk 0:02:30.8]} 23... d4 {[%clk 0:02:32.6]}
24. g3 {[%clk 0:02:29.7]} 24... Rfc8 {[%clk 0:02:30.6]} 25. Ke2 {[%clk
0:02:29.3]} 25... Kg7 {[%clk 0:02:23.6]} 26. Kd2 {[%clk 0:02:20.7]} 26... h6
{[%clk 0:02:22.6]} 27. Bc4 {[%clk 0:01:59.5]} 27... Be4 {[%clk 0:02:17.5]} 28.
Rxa8 {[%clk 0:01:31.3]} 28... Rxa8 {[%clk 0:02:14.9]} 29. Bd3 {[%clk 0:01:31.9]}
29... Bd5 {[%clk 0:02:04.5]} 30. Re1 {[%clk 0:01:29.4]} 30... Ra2 {[%clk
0:02:04]} 31. Bc4 {[%clk 0:01:24]} 31... Bf3 {[%clk 0:01:28.6]} 32. Kd3 {[%clk
0:01:20.8]} 32... Bg4 {[%clk 0:01:28.6]} 33. Rc1 {[%clk 0:01:00.2]} 33... Bf5+
{[%clk 0:01:28.4]} 34. Kxd4 {[%clk 0:01:00.3]} 34... Bxc2 {[%clk 0:01:29]} 35.
Kc5 {[%clk 0:00:55.9]} 35... Bf5 {[%clk 0:01:28.9]} 36. Kxb4 {[%clk 0:00:51.5]}
36... Rxh2 {[%clk 0:01:29]} 37. Kc5 {[%clk 0:00:50.4]} 37... g5 {[%clk
0:01:26.7]} 38. fxg5 {[%clk 0:00:46]} 38... hxg5 {[%clk 0:01:27.6]} 39. b4
{[%clk 0:00:45.4]} 39... Rh8 {[%clk 0:01:18.2]} 40. Kd6 {[%clk 0:00:38.5]} 40...
f6 {[%clk 0:01:00.3]} 41. Ba6 {[%clk 0:00:12.2]} 41... fxe5 {[%clk 0:00:59.6]}
42. Kxe5 {[%clk 0:00:12.2]} 42... Rd8 {[%clk 0:00:57.1]} 43. Rc5 {[%clk
0:00:09.3]} 43... Rd2 {[%clk 0:00:43.7]} 44. b5 {[%clk 0:00:09]} 44... Rb2
{[%clk 0:00:43.7]} 45. Kd6 {[%clk 0:00:07.7]} 45... Kf6 {[%clk 0:00:44.1]} 46.
Kc7 {[%clk 0:00:05.8]} 46... e5 {[%clk 0:00:44.7]} 47. b6 {[%clk 0:00:05.9]}
47... Be4 {[%clk 0:00:45.3]} 48. b7 {[%clk 0:00:03]} 48... Bxb7 {[%clk
0:00:45.7]} 49. Bxb7 {[%clk 0:00:03.8]} 49... g4 {[%clk 0:00:46.6]} 50. Bc8
{[%clk 0:00:02.6]} 50... Rb4 {[%clk 0:00:46]} 51. Rc6+ {[%clk 0:00:01.9]} 51...
Kg5 {[%clk 0:00:45.8]} 52. Rc5 {[%clk 0:00:02.8]} 52... Kf6 {[%clk 0:00:46.3]}
53. Rc6+ {[%clk 0:00:03.1]} 53... Kg5 {[%clk 0:00:45.9]} 54. Rc5 {[%clk
0:00:03.8]} 54... Re4 {[%clk 0:00:46.5]} 55. Bd7 {[%clk 0:00:03.7]} 55... Re3
{[%clk 0:00:46.3]} 56. Rc4 {[%clk 0:00:03.3]} 56... Rxg3 {[%clk 0:00:46.1]} 57.
Re4 {[%clk 0:00:03.9]} 57... Rc3+ {[%clk 0:00:44.1]} 58. Kd6 {[%clk 0:00:03.6]}
58... g3 {[%clk 0:00:45]} 59. Rxe5+ {[%clk 0:00:03.4]} 59... Kf4 {[%clk
0:00:45.2]} 60. Bc6 {[%clk 0:00:04.3]} 60... Rxc6+ {[%clk 0:00:42.9]} 0-1

[Event "*** Titled Tuesday Blitz"]
[Site "Chess.com"]
[Date "2020.10.20"]
[Round "1"]
[White "LittlePeasant"]
[Black "DanielTitichoca"]
[Result "1-0"]
[WhiteElo "2813"]
[BlackElo "2404"]
[TimeControl "180+1"]
[EndTime "10:07:59 PDT"]
[Termination "LittlePeasant won by checkmate"]

1. Nf3 {[%clk 0:03:00.9]} 1... Nf6 {[%clk 0:02:56.7]} 2. c4 {[%clk 0:03:00.8]}
2... g6 {[%clk 0:02:57.2]} 3. Nc3 {[%clk 0:03:01.1]} 3... Bg7 {[%clk 0:02:57.7]}
4. g3 {[%clk 0:03:00.9]} 4... c5 {[%clk 0:02:58.3]} 5. Bg2 {[%clk 0:03:00.7]}
5... O-O {[%clk 0:02:58.8]} 6. d4 {[%clk 0:03:01.3]} 6... cxd4 {[%clk
0:02:58.6]} 7. Nxd4 {[%clk 0:03:02.2]} 7... Nc6 {[%clk 0:02:58.8]} 8. O-O {[%clk
0:03:02.7]} 8... Qa5 {[%clk 0:02:58.9]} 9. e3 {[%clk 0:02:47.1]} 9... d6 {[%clk
0:02:52.6]} 10. Bd2 {[%clk 0:02:45.1]} 10... Qc5 {[%clk 0:02:44.1]} 11. Nxc6
{[%clk 0:02:25.3]} 11... bxc6 {[%clk 0:02:43.3]} 12. b3 {[%clk 0:02:26.2]} 12...
Bg4 {[%clk 0:02:34.1]} 13. Qe1 {[%clk 0:02:07.3]} 13... d5 {[%clk 0:02:25.4]}
14. Rc1 {[%clk 0:02:00.2]} 14... Qd6 {[%clk 0:02:23.2]} 15. h3 {[%clk
0:01:53.4]} 15... Bf5 {[%clk 0:02:12.7]} 16. Qe2 {[%clk 0:00:46.6]} 16... Rac8
{[%clk 0:01:51.8]} 17. Rfd1 {[%clk 0:00:42.1]} 17... Rfd8 {[%clk 0:01:45.1]} 18.
Be1 {[%clk 0:00:38.5]} 18... Be6 {[%clk 0:01:36.3]} 19. e4 {[%clk 0:00:37.4]}
19... Qa3 {[%clk 0:01:25.7]} 20. exd5 {[%clk 0:00:28.3]} 20... cxd5 {[%clk
0:01:25.8]} 21. Nb5 {[%clk 0:00:28.9]} 21... Qa6 {[%clk 0:01:21.9]} 22. Nd4
{[%clk 0:00:29.1]} 22... Bd7 {[%clk 0:00:52]} 23. cxd5 {[%clk 0:00:28.7]} 23...
Qxe2 {[%clk 0:00:50.2]} 24. Nxe2 {[%clk 0:00:29.6]} 24... Rxc1 {[%clk
0:00:47.4]} 25. Rxc1 {[%clk 0:00:29.6]} 25... Ne8 {[%clk 0:00:36.6]} 26. Ba5
{[%clk 0:00:28.4]} 26... Rb8 {[%clk 0:00:34.2]} 27. Nf4 {[%clk 0:00:28.3]} 27...
Nd6 {[%clk 0:00:33.6]} 28. Rc7 {[%clk 0:00:25.5]} 28... Bf5 {[%clk 0:00:28.1]}
29. Rxe7 {[%clk 0:00:24.3]} 29... Nb5 {[%clk 0:00:25.6]} 30. d6 {[%clk
0:00:21.5]} 30... Bf6 {[%clk 0:00:17.3]} 31. Bc6 {[%clk 0:00:21.4]} 31... Nxd6
{[%clk 0:00:14.7]} 32. Rxa7 {[%clk 0:00:21.9]} 32... Rc8 {[%clk 0:00:13.8]} 33.
Rc7 {[%clk 0:00:16]} 33... Ra8 {[%clk 0:00:13.1]} 34. Bb4 {[%clk 0:00:14.6]}
34... Rd8 {[%clk 0:00:12.1]} 35. Nd5 {[%clk 0:00:13.8]} 35... Bg7 {[%clk
0:00:10.5]} 36. Ne7+ {[%clk 0:00:14]} 36... Kh8 {[%clk 0:00:11.2]} 37. Bxd6
{[%clk 0:00:13.8]} 37... Rxd6 {[%clk 0:00:08.9]} 38. Nxf5 {[%clk 0:00:14.3]}
38... Rd1+ {[%clk 0:00:06.7]} 39. Kg2 {[%clk 0:00:14.2]} 39... Bf6 {[%clk
0:00:04.3]} 40. Rc8+ {[%clk 0:00:13.9]} 40... Rd8 {[%clk 0:00:03.8]} 41. Rxd8+
{[%clk 0:00:13.9]} 41... Bxd8 {[%clk 0:00:04.7]} 42. Nd6 {[%clk 0:00:14.8]}
42... Kg7 {[%clk 0:00:04.8]} 43. Nc4 {[%clk 0:00:14.9]} 43... Bb6 {[%clk
0:00:05.1]} 44. a4 {[%clk 0:00:15.8]} 44... Bc5 {[%clk 0:00:05.3]} 45. a5 {[%clk
0:00:15.9]} 45... f5 {[%clk 0:00:05.9]} 46. a6 {[%clk 0:00:16.5]} 46... f4
{[%clk 0:00:06.8]} 47. b4 {[%clk 0:00:16.9]} 47... g5 {[%clk 0:00:07.7]} 48.
bxc5 {[%clk 0:00:17]} 48... g4 {[%clk 0:00:08.3]} 49. hxg4 {[%clk 0:00:17.2]}
49... f3+ {[%clk 0:00:09.2]} 50. Kxf3 {[%clk 0:00:17.5]} 50... h5 {[%clk
0:00:10.1]} 51. a7 {[%clk 0:00:18]} 51... h4 {[%clk 0:00:10.1]} 52. gxh4 {[%clk
0:00:18.3]} 52... Kf6 {[%clk 0:00:09.6]} 53. a8=Q {[%clk 0:00:17.5]} 53... Ke7
{[%clk 0:00:10.5]} 54. Qb7+ {[%clk 0:00:17.3]} 54... Ke6 {[%clk 0:00:11.4]} 55.
Qd7+ {[%clk 0:00:16.7]} 55... Kf6 {[%clk 0:00:11.1]} 56. g5+ {[%clk 0:00:15.5]}
56... Kg6 {[%clk 0:00:12]} 57. Be4+ {[%clk 0:00:15.2]} 57... Kh5 {[%clk
0:00:09.5]} 58. Qh7# {[%clk 0:00:16.1]} 1-0